Cogmind - Beta 13 @@@ ROGUE MODE // 2024.04.06 @ 12:10:00 Player: Cherman0 Result: Destroyed by as-75631 with Assembled Heavy Rifle Performance ------------- Evolutions (0) 0 Regions Visited (2) 400 Robots Destroyed (35) 175 Value Destroyed (605) 605 Prototype IDs (0) 0 Alien Tech Used (0) 0 Bonus (-121) -121 TOTAL SCORE: 1059 Bonus ------- Friendly Fire -121 Cogmind --------- Core Integrity 0/250 Matter 274/300 Energy 246/250 System Corruption 0% Temperature Cool (2) Movement Walking (120) Location -10/Mines Parts ------- > --- POWER (1) -------- Ion Engine > --- PROPULSION (2) --- Aluminum Leg Aluminum Leg > --- UTILITY (2) ------ Improved Heat Sink > --- WEAPON (2) ------- Particle Cannon Light Cannon > --- INVENTORY (5) ---- Light Ion Engine Improved Heat Sink Signal Interpreter Hacking Suite Mining Laser Peak State ------------ > --- POWER ------------ Light Ion Engine > --- PROPULSION ------- Aluminum Leg Aluminum Leg > --- UTILITY ---------- Small Storage Unit Improved Terrain Scanner > --- WEAPON ----------- Light Assault Rifle Light Assault Rifle > --- INVENTORY -------- Light Ion Engine Small Laser [Rating: 9] Favorites ----------- Power Ion Engine Engine Ion Engine Propulsion Aluminum Leg Leg Aluminum Leg Utility Sensor Array Device Sensor Array Storage Medium Storage Unit Hackware Hacking Suite Protection Light Armor Plating Weapon Assault Rifle Energy Gun Medium Laser Energy Cannon Particle Cannon Ballistic Gun Assault Rifle Ballistic Cannon Light Cannon Special Weapon Mining Laser Build | -11 -10 -10 ------- Run | Yrd Mat Min Slots Evolved . | . . . Power . | . . . Propulsion . | . . . Utility . | . . . Weapon . | . . . Parts Attached 47 | 9 28 10 Power 6 | 1 4 1 Engine 6 | 1 4 1 Core . | . . . Reactor . | . . . Propulsion 16 | 2 9 5 Treads . | . . . Leg 16 | 2 9 5 Wheel . | . . . Hover . | . . . Flight . | . . . Utility 9 | 3 5 1 Device 5 | 2 2 1 Storage 2 | 1 1 . Processor . | . . . Hackware 1 | . 1 . Protection 1 | . 1 . Artifact . | . . . Weapon 16 | 3 10 3 Energy Gun 3 | 1 2 . Energy Cannon 2 | . 1 1 Ballistic Gun 8 | 2 6 . Ballistic Cannon 2 | . 1 1 Launcher . | . . . Special Weapon 1 | . . 1 Impact Weapon . | . . . Slashing Weapon . | . . . Piercing Weapon . | . . . Special Melee Weapon . | . . . Unidentified Prototypes . | . . . Parts Lost 4 | . 2 2 Power . | . . . Propulsion . | . . . Utility 3 | . 1 2 Weapon 1 | . 1 . Highest Loss Streak 2 | . 2 2 To Critical Strikes . | . . . Average Slot Usage (%) 99 | . 99 99 Engine 13 | . 13 14 Leg 27 | . 27 28 Device 13 | . 13 14 Storage 4 | . 6 . Hackware 1 | . 2 . Protection 7 | . 5 13 Energy Gun 4 | . 5 . Energy Cannon 6 | . 3 13 Ballistic Gun 11 | . 14 . Ballistic Cannon 5 | . 3 11 Naked Turns . | . . . Heaviest Build 20 | 11 20 16 Greatest Support 20 | 20 20 20 Greatest Overweight (x) 2 | 2 1 . Average Overweight (x) . | . . . Largest Inventory Capacity 10 | 8 10 5 Average Capacity 6 | 7 7 5 Most Carried 10 | 3 10 5 Average Carried 5 | 1 6 4 Final Capacity 8 | 8 5 5 Final Carried 5 | 3 5 5 Class Distribution -------------------- 59% | Mutant 40% | Scavenger-Mutant Dominant Class ---------------- Mutant | -10/Materials Scavenger-Mutant | -10/Mines Resources | -11 -10 -10 ----------- Run | Yrd Mat Min Matter Collected 1004 | 311 537 156 Remotely . | . . . Salvage Created 855 | 80 589 186 Parts 77 | 17 50 10 Haulers Intercepted 2 | . 2 . Recyclers Shooed . | . . . Parts Field Recycled . | . . . Retrieved Matter . | . . . Parts Self-Destructed . | . . . Prevented . | . . . Kills | -11 -10 -10 ------- Run | Yrd Mat Min Combat Hostiles Destroyed 22 | . 16 6 Guns 14 | . 14 . Cannons 8 | . 2 6 Classes Destroyed 6 | 1 5 . Tunneler 5 | 5 . . Hauler 2 | . 2 . Operator 2 | . 2 . Watcher 3 | . 3 . Swarmer 12 | . 9 3 Grunt 11 | . 7 4 Best Kill Streak 5 | 3 5 3 Combat Bots Only 5 | . 5 3 Max Kills in Single Turn 1 | 1 1 1 Gunslinging . | . . . Exploded . | . . . Melee . | . . . Uniques/NPCs Destroyed . | . . . Combat | -11 -10 -10 -------- Run | Yrd Mat Min Hostile Shots Fired 133 | . 93 40 Missed 30 | . 17 13 Damage Taken 1165 | . 685 480 Core 254 | . 158 96 Absorbed by Shields . | . . . Regen/Repaired (Parts) 42 | . 42 . Core Remaining (%) 100 | 100 . . Volleys Fired 103 | 12 66 25 Largest 2 | 2 2 2 Hottest 103 | 40 103 103 Shots Fired 191 | 24 131 36 Gun 143 | 24 119 . Cannon 45 | . 12 33 Launcher . | . . . Special 3 | . . 3 Kinetic 135 | 24 90 21 Thermal 56 | . 41 15 Explosive . | . . . Electromagnetic . | . . . Robot Hit Streak 10 | 9 10 8 Robot Miss Streak 6 | 2 5 6 Penetration Max . | . . . Secondary Targets 1 | . 1 . Max Gunslinging Chain 1 | . 1 . Shots Hit Robots 115 | 15 83 17 Core Hits 48 | 9 31 8 Critical Kills 2 | . 2 . Critical Parts Destroyed . | . . . Critical Strikes 6 | . 5 1 Burn 3 | . 3 . Destroy 2 | . 2 . Blast 1 | . . 1 Melee Attacks . | . . . Impact . | . . . Slashing . | . . . Piercing . | . . . Sneak Attacks . | . . . Combat Hostiles . | . . . Follow-up Attacks . | . . . Damage Inflicted 1525 | 119 1078 328 Guns 1061 | 119 942 . Cannons 464 | . 136 328 Explosions . | . . . Melee . | . . . Ramming . | . . . Kinetic 1070 | 119 725 226 Thermal 455 | . 353 102 Explosive . | . . . Electromagnetic . | . . . Impact . | . . . Slashing . | . . . Piercing . | . . . Highest Corruption . | . . . Average Corruption . | . . . Corruption Purged . | . . . Corruption Blocked . | . . . Overload Shots . | . . . Overflow Damage 15 | . 11 4 Projectiles 15 | . 11 4 Explosions . | . . . Melee . | . . . Knockbacks 1 | . 1 . Impact . | . . . Kinetic 1 | . 1 . Secondary . | . . . Self-Inflicted Damage . | . . . Shots . | . . . Rammed . | . . . Targets Rammed . | . . . Kicked . | . . . Crushed . | . . . Highest Temperature 315 | . 135 315 Average Temperature 62 | . 44 92 Received Heat Transfer 299 | . 138 161 Siege Activations . | . . . Robots Corrupted . | . . . Combat Hostiles . | . . . Parts Fried . | . . . Impact Corruptions . | . . . Robots Melted . | . . . Combat Hostiles . | . . . Parts Melted 3 | . . 3 Heat Transferred 1369 | . 1184 185 Parts Sabotaged . | . . . Parts Stolen . | . . . Parts Stripped . | . . . Power Chain Reactions . | . . . Alert | -11 -10 -10 ------- Run | Yrd Mat Min Peak Influence 185 | 25 185 165 Initial 28 | . 16 28 Average 82 | 10 85 93 Maximum Alert Level . | . . . Low Security (%) 100 | 100 100 100 Level 1 . | . . . Level 2 . | . . . Level 3 . | . . . Level 4 . | . . . Level 5 . | . . . High Security . | . . . Max Security . | . . . Squads Dispatched 4 | . 4 . Investigation 1 | . 1 . Extermination . | . . . Reinforcement 3 | . 3 . Assault . | . . . Garrison . | . . . Intercept . | . . . Searches Triggered . | . . . Construction Impeded . | . . . Haulers Reinforced . | . . . Active Scanning Responses . | . . . Cargo Convoy Interrupts . | . . . Stealth | -11 -10 -10 --------- Run | Yrd Mat Min Distress Signals . | . . . Communications Jammed . | . . . Distress Signals . | . . . Times Spotted 44 | . 27 17 Peak Tracking Total 6 | . 3 6 Tactical Retreats 1 | . 1 . Traps | -11 -10 -10 ------- Run | Yrd Mat Min Traps Triggered 4 | . 4 . Indirectly . | . . . Trap Hack Attempts . | . . . Triggered . | . . . Disarmed . | . . . Reprogrammed . | . . . Reused . | . . . Traps Extracted . | . . . Installed . | . . . Triggered . | . . . Machines | -11 -10 -10 ---------- Run | Yrd Mat Min Machines Disabled . | . . . Max in Single Turn . | . . . Machines Repaired . | . . . Machines Dismantled . | . . . Machines Sabotaged . | . . . Overloaded Fab Kills . | . . . Hacking | -11 -10 -10 --------- Run | Yrd Mat Min Machines Accessed 4 | . 3 1 Terminals 3 | . 2 1 Fabricators . | . . . Repair Stations 1 | . 1 . Recycling Units . | . . . Scanalyzers . | . . . Garrison Access . | . . . Total Hacks 12 | . 10 2 Successful 4 | . 3 1 Failed 8 | . 7 1 Catastrophic . | . . . Database Lockouts . | . . . Manual . | . . . Terminals 6 | . 4 2 Fabricators . | . . . Repair Stations 6 | . 6 . Recycling Units . | . . . Scanalyzers . | . . . Garrison Access . | . . . Terminal Hacks 2 | . 1 1 Locate Traps 1 | . 1 . Zone Layout 1 | . . 1 Fabricator Hacks . | . . . Repair Station Hacks 2 | . 2 . Scan Component 1 | . 1 . Repair 1 | . 1 . Recycling Unit Hacks . | . . . Scanalyzer . | . . . Garrison Access Hacks . | . . . Unauthorized Hacks . | . . . Terminals . | . . . Fabricators . | . . . Repair Stations . | . . . Recycling Units . | . . . Scanalyzers . | . . . Garrison Access . | . . . Data Cores Recovered . | . . . Used . | . . . Hacking Detections 2 | . 2 . Full Trace Events . | . . . Feedback Events . | . . . Feedback Blocked . | . . . Robot Schematics Acquired . | . . . Robots Built . | . . . Authchips . | . . . Time . | . . . Total Robot Build Rating . | . . . Part Schematics Acquired . | . . . Parts Built . | . . . Authchips . | . . . Time . | . . . Total Part Build Rating . | . . . Parts Repaired 1 | . 1 . Time 13 | . 13 . Parts Recycled . | . . . Recycled Matter . | . . . Retrieved Matter . | . . . Retrieved Components . | . . . Parts Scanalyzed . | . . . Part Schematics Acquired . | . . . Parts Damaged . | . . . Bothacking | -11 -10 -10 ------------ Run | Yrd Mat Min Used RIF Installer . | . . . Robots Hacked . | . . . Non-combat . | . . . Combat . | . . . Robot Hacks Applied . | . . . Relay Couplers Released . | . . . Fabnet Peak Effective % . | . . . Robots Rewired . | . . . Allies Hacked . | . . . Hacks Repelled . | . . . Allies | -11 -10 -10 -------- Run | Yrd Mat Min Total Allies 3 | . . 3 Largest Group 3 | . . 3 Highest-Rated Group 40 | . . 40 Highest-Rated Ally 16 | . . 16 Total Orders . | . . . Ally Attacks 8 | . . 8 Total Damage 71 | . . 71 Kills . | . . . Allies Corrupted . | . . . Allies Melted . | . . . Intel | -11 -10 -10 ------- Run | Yrd Mat Min Robot Analysis Total . | . . . Derelict Logs Recovered 1 | . . 1 Drone Launches . | . . . Drone Recoveries . | . . . Exploration | -11 -10 -10 ------------- Run | Yrd Mat Min Turns Passed 2493 | 181 1739 573 Spaces Moved 1551 | 112 1046 393 Core 5 | 5 . . Treads . | . . . Legs 1546 | 107 1046 393 Wheels . | . . . Hover . | . . . Flight . | . . . Fastest Speed 50 | 50 120 120 Average Speed 120 | 119 120 120 Slowest Speed 190 | 150 190 120 Overloaded Moves . | . . . Propulsion Burnouts . | . . . Robots Hopped . | . . . Cave-ins Triggered . | . . . Exploration Rate (%) 53 | 4 92 63 Regions Visited 2 Branch Regions 1 Pre-discovered Areas . | . . . Known Exits Taken . | . . . Unknown Exits Taken 2 | 1 1 . Scrap Searched 1 | . . 1 Spaces Dug 2 | . . 2 Terrain Destroyed 4 | . . 4 Melee . | . . . Projectile 4 | . . 4 AOE . | . . . Terrain Rammed . | . . . Walls Destroyed . | . . . Machines Disabled . | . . . Actions | -11 -10 -10 --------- Run | Yrd Mat Min Total 1989 | 136 1398 455 Wait 247 | 1 227 19 Move 1549 | 111 1045 393 Hop . | . . . Pick Up 14 | 3 10 1 Fast Attach 16 | 7 8 1 Attach 3 | . 3 . Detach . | . . . Swap 28 | 2 17 9 Drop 29 | . 22 7 Fire 103 | 12 66 25 Melee . | . . . Ram . | . . . Kick . | . . . Crush . | . . . Escape Stasis . | . . . Rewire . | . . . Trap . | . . . Miscellaneous . | . . . Route ------- -11/Scrapyard -10/Materials (discovered 4 exits: [*Mat x3] / *Min) -10/Mines History --------- Turn | Location | Event 7 | -11/Scrapyard | Discovered new exit (range 16) 182 | -11/Scrapyard | Entered Materials 300 | -10/Materials | Build established: Mutant 507 | -10/Materials | Discovered new exit (range 3) 1012 | -10/Materials | Repaired Ion Engine 1038 | -10/Materials | Core integrity fell below 50% 1070 | -10/Materials | Discovered new exit (range 6) 1489 | -10/Materials | Discovered new exit (range 11) 1583 | -10/Materials | Build established: Scavenger-Mutant 1874 | -10/Materials | Discovered new exit (range 15) 1921 | -10/Materials | Entered Mines 1969 | -10/Mines | Learned Materials terminal intel 2169 | -10/Mines | Assisted by bots powering up and referring to "LRC-V3" 2458 | -10/Mines | Assembled infested the area 2462 | -10/Mines | Core integrity fell below 20% 2463 | -10/Mines | Assisted by a Guerilla fighting off Assembled 2494 | -10/Mines | Destroyed by as-75631 with Assembled Heavy Rifle Last Messages --------------- 02466_ The unstable cave ceiling collapses. 02467_ Acquired 10 matter. 02469_ Acquired Imp. Heat Sink. 02471_ Acquired 10 matter. 02476_ The unstable cave ceiling collapses. 02476_ HV Slug penetrates G-34 Mercenary. 02476_ G-34 Mercenary suffers critical hit (Destroy). 02476_ G-34 Mercenary destroyed. 02476_ G-47 Trooper suffers critical hit (Destroy). 02478_ HV Slug penetrates Wall. 02478_ K-01 Serf collects debris. 02478_ 1J-QAB(h) destroyed. 02482_ K-01 Serf collects debris. 02482_ T-07 Excavator destroyed. 02484_ The unstable cave ceiling collapses. 02486_ K-01 Serf collects debris. 02487_ The unstable cave ceiling collapses. 02487_ K-01 Serf crushed by falling debris. 02487_ K-01 Serf destroyed. 02487_ Wheel crushed. Map ----- +----------------------------------------------------+ | ???????## #?????????????# ##??????????## | | ???????# #?????????????# ##????????????? | | ???????# ##?????????????# #?????????????? | | ???????# #??????????????# #?????????????? | | ???????# #?????????????## ##?????????????? | | ???????# #????????????## #??????????????? | | ???????# #???????????## ##??????????????? | | ???????# #????????#### ####???????????????? | | ???????#% #????????# ##??????????????????? | | ???????# !#????????# ##???????????????????? | | ???????# #????????# ##????????????????????? | | ???????# #????????# ##?????????????????????? | | ???????# ????????# ###????????????????????? | | ???????# ##????????# ## #???????????????????? | | ????????#??????????# ##? ###????????????????? | | ???????????????????# ##? %=]!%?????????????????? | | ??????????????????## #? %=%##????????????????? | | ?????????????????## #?# *!%#?????????????????? | | ?????????????????# #??##=a###???????????????? | | ?????????????????# ##### a# #???????????????? | | ?????????????????## # #a #???????????????? | | ??????????????????## ##??????????????? | | ??????????????????## # #??????????????? | | ?????????????????## [% #??????????????? | | ?????????????????# = % ##??????????????? | | ??????????? ##@ #??????????????? | | ??????????? ######## ##??????????????? | | ??????????? #?????# " #???????????????? | | ???????????# #??????#####[" #???????????????? | | ???????????# ???????????#%###???????????????? | | ???????????# ???????????#%#?????????????????? | | ???????????## ?????????????%#?????????????????? | | ????????????### ?????????????%=?????????????????? | | ??????????????????????????????"%?????????????????? | | ??????????????????????????????" ?????????????????? | | ??????????????????????????????" ?????????????????? | | ??????????????????????????????? ?????????????????? | | ??????????????????????????????? ????????????????? | | ????????????????????????????????#????????????????? | | ?????????????????????????????????????????????????? | | ?????????????????????????????????????????????????? | | ?????????????????????????????????????????????????? | | | | | | | | | | | | | | | | | +----------------------------------------------------+ Best States ------------- Heat Dissipation 39 Energy Generation 10 Energy Capacity 250 Matter Stores 300 Matter Capacity 300 Sight Range 16 Robot Scan Range 14 Terrain Scan Range 16 Terrain Scan Density 10 Armor Coverage 150 Evasion (%) 55 Offensive Hacking 10 Item Schematics ----------------- None Robot Schematics ------------------ None Fabricated ------------ Nothing Alien Tech Used ----------------- None Achievements -------------- Backstab Challenges ------------ None Game ------ Seed PrecisionSwordPlatform Manual? 0 Play Time 00:32:02 Cumulative 7.5 hours Start 2024.04.06 @ 11:38:19 End 2024.04.06 @ 12:10:00 Sessions 1 Manual Loads 0 Difficulty Rogue Special Mode None Game No. 5 Rogue 5 Adventurer 0 Explorer 0 Win Type - Total 0 Types 0/0/0/0/0/0/0/0/0 Lore% 11 Gallery% 10 Achievement% 9 Wizard Run 0 Options --------- Layout 0 ASCII 0 Keyboard 0 Movement Numpad Keybinds 0 Fullscreen 1 Font 18/SmallcapsGlow Map View 76x50 Zoom Use 0% Tactical HUD 1 Map Filters NONE Filters NONE Steam 1 RUN: 4691b79d-1e41-4572-8250-c89d971ea8c2